Cogmind - Beta 16 @@@ ROGUE MODE // 2025.10.23 @ 16:38:06 Player: C0-2MO Result: Destroyed by S-27 Virus with Autogun Performance ------------- Evolutions (5) 2500 Regions Visited (6) 1200 Robots Destroyed (0) 0 Value Destroyed (0) 0 Prototype IDs (1) 20 Alien Tech Used (0) 0 Bonus (1987) 1987 TOTAL SCORE: 5707 Bonus ------- Pacifist 1987 Cogmind --------- Core Integrity 0/1000 Matter 126/300 Energy 95/100 System Corruption 5% Temperature Cool (0) Movement Core (50) Location -5/Factory Parts ------- > --- POWER (2) -------- (None) > --- PROPULSION (7) --- (None) > --- UTILITY (6) ------ (None) > --- WEAPON (2) ------- Lance > --- INVENTORY (5) ---- (None) Peak State ------------ > --- POWER ------------ (None) > --- PROPULSION ------- VTOL Module Nuclear Pulse Array Nuclear Pulse Array > --- UTILITY ---------- (None) > --- WEAPON ----------- (None) > --- INVENTORY -------- Lance [Rating: 26] Favorites ----------- Power None Propulsion Improved Flight Unit Hover Unit Combat Gravmag System Flight Unit Improved Flight Unit Utility Improved Sensor Array Device Improved Sensor Array Hackware Advanced System Shield Weapon Mace Special Weapon Welding Torch Impact Weapon Mace Piercing Weapon Lance Build | -11 -10 -9 -8 -7 -6 -5 ------- Run | Yrd Mat Mat Mat Fac Fac Fac Slots Evolved 10 | . . 2 2 2 2 2 Power 1 | . . . . . . 1 Propulsion 5 | . . 1 1 1 1 1 Utility 4 | . . 1 1 1 1 . Weapon . | . . . . . . . Parts Attached 14 | . 1 2 2 . . 9 Power . | . . . . . . . Engine . | . . . . . . . Core . | . . . . . . . Reactor . | . . . . . . . Propulsion 8 | . . 1 1 . . 6 Treads . | . . . . . . . Leg . | . . . . . . . Wheel . | . . . . . . . Hover 1 | . . . . . . 1 Flight 7 | . . 1 1 . . 5 Utility 3 | . . . 1 . . 2 Device 2 | . . . 1 . . 1 Storage . | . . . . . . . Processor . | . . . . . . . Hackware 1 | . . . . . . 1 Protection . | . . . . . . . Artifact . | . . . . . . . Weapon 3 | . 1 1 . . . 1 Energy Gun . | . . . . . . . Energy Cannon . | . . . . . . . Ballistic Gun . | . . . . . . . Ballistic Cannon . | . . . . . . . Launcher . | . . . . . . . Special Weapon 1 | . 1 . . . . . Impact Weapon 1 | . . 1 . . . . Slashing Weapon . | . . . . . . . Piercing Weapon 1 | . . . . . . 1 Special Melee Weapon . | . . . . . . . Unidentified Prototypes 1 | . . . 1 . . . Parts Lost 12 | . 1 . . 1 . 10 Power . | . . . . . . . Propulsion 8 | . . . . 1 . 7 Utility 2 | . . . . . . 2 Weapon 2 | . 1 . . . . 1 Highest Loss Streak 5 | . 1 . . 1 . 5 To Critical Strikes . | . . . . . . . Average Backups . | . . . . . . . Power . | . . . . . . . Propulsion . | . . . . . . . Utility . | . . . . . . . Weapon . | . . . . . . . Tool/Special . | . . . . . . . Unused Backups . | . . . . . . . Power . | . . . . . . . Propulsion . | . . . . . . . Utility . | . . . . . . . Weapon . | . . . . . . . Tool/Special . | . . . . . . . Average Slot Usage (%) 13 | . 3 13 28 28 20 8 Flight 6 | . . 4 16 12 6 5 Device 2 | . . . 3 7 6 1 Impact Weapon 3 | . . 9 9 7 6 . Peak Build Rating 26 | . 1 3 9 9 8 26 Average Rating 6 | . . 2 6 8 8 9 On Entrance 4 | . . . 3 9 8 8 Avg Prop Armor Cover (%) 20 | . . . . . . 20 Naked Turns 77 | . 54 3 . . . 20 Heaviest Build 4 | . 1 2 3 3 3 4 Greatest Support 26 | 3 3 4 9 9 5 26 Greatest Overweight (x) . | . . . . . . . Average Overweight (x) . | . . . . . . . Largest Inventory Capacity 5 | 5 5 5 5 5 5 5 Average Capacity 5 | 5 5 5 5 5 5 5 Most Carried 1 | . . . . . . 1 Average Carried . | . . . . . . . Final Capacity 5 | 5 5 5 5 5 5 5 Final Carried . | . . . . . . . Class Distribution -------------------- 100% | Mutant Dominant Class ---------------- Mutant | -10/Materials Mutant | -9/Materials Mutant | -8/Materials Mutant | -7/Factory Mutant | -6/Factory Mutant | -5/Factory Resources | -11 -10 -9 -8 -7 -6 -5 ----------- Run | Yrd Mat Mat Mat Fac Fac Fac Matter Collected 124 | 124 . . . . . . Remotely . | . . . . . . . Salvage Created . | . . . . . . . Parts . | . . . . . . . Haulers Intercepted . | . . . . . . . Recyclers Shooed . | . . . . . . . Parts Field Recycled . | . . . . . . . Retrieved Matter . | . . . . . . . Parts Self-Destructed . | . . . . . . . Prevented . | . . . . . . . Parts Restored . | . . . . . . . Kills | -11 -10 -9 -8 -7 -6 -5 ------- Run | Yrd Mat Mat Mat Fac Fac Fac Combat Hostiles Destroyed . | . . . . . . . Classes Destroyed . | . . . . . . . Best Kill Streak . | . . . . . . . Combat Bots Only . | . . . . . . . Max Kills in Single Turn . | . . . . . . . Gunslinging . | . . . . . . . Exploded . | . . . . . . . Melee . | . . . . . . . Uniques/NPCs Destroyed . | . . . . . . . Combat | -11 -10 -9 -8 -7 -6 -5 -------- Run | Yrd Mat Mat Mat Fac Fac Fac Hostile Shots Fired 272 | . 11 30 . 11 18 202 Missed 130 | . 3 10 . 6 8 103 Hits 142 | . 8 20 . 5 10 99 Projectile 142 | . 8 20 . 5 10 99 AOE 1 | . . . . . . 1 Critical Strikes 4 | . . 2 . 1 . 1 Damage Taken 2120 | . 70 224 . 77 77 1672 Core 1315 | . 35 158 . 47 71 1004 Absorbed by Shields . | . . . . . . . Core Remaining (%) 88 | 100 86 60 100 93 91 . Volleys Fired . | . . . . . . . Largest . | . . . . . . . Hottest . | . . . . . . . Shots Fired . | . . . . . . . Gun . | . . . . . . . Cannon . | . . . . . . . Launcher . | . . . . . . . Special . | . . . . . . . Kinetic . | . . . . . . . Thermal . | . . . . . . . Explosive . | . . . . . . . Electromagnetic . | . . . . . . . Robot Hit Streak . | . . . . . . . Robot Miss Streak . | . . . . . . . Penetration Max . | . . . . . . . Secondary Targets . | . . . . . . . Shots Hit Robots . | . . . . . . . Core Hits . | . . . . . . . Critical Kills . | . . . . . . . Critical Parts Destroyed . | . . . . . . . Critical Strikes . | . . . . . . . Melee Attacks 8 | . . 5 . . . 3 Impact 5 | . . 5 . . . . Slashing . | . . . . . . . Piercing 3 | . . . . . . 3 Sneak Attacks . | . . . . . . . Combat Hostiles . | . . . . . . . Follow-up Attacks . | . . . . . . . Damage Inflicted 10 | . 10 . . . . . Guns . | . . . . . . . Cannons . | . . . . . . . Explosions . | . . . . . . . Melee . | . . . . . . . Ramming 10 | . 10 . . . . . Kinetic . | . . . . . . . Thermal . | . . . . . . . Explosive . | . . . . . . . Electromagnetic . | . . . . . . . Impact . | . . . . . . . Slashing . | . . . . . . . Piercing . | . . . . . . . Highest Corruption 5 | . . 2 . . . 5 Average Corruption 2 | . . 1 . . . 2 Corruption Purged . | . . . . . . . Corruption Blocked . | . . . . . . . Effects 3 | . . 1 . . . 2 Message Errors 1 | . . 1 . . . . Energy Discharges 1 | . . . . . . 1 Data Loss (major) 1 | . . . . . . 1 Overload Shots . | . . . . . . . Overflow Damage . | . . . . . . . Projectiles . | . . . . . . . Explosions . | . . . . . . . Melee . | . . . . . . . Knockbacks . | . . . . . . . Impact . | . . . . . . . Kinetic . | . . . . . . . Secondary . | . . . . . . . Self-Inflicted Damage 5 | . 5 . . . . . Shots . | . . . . . . . Rammed 1 | . 1 . . . . . Targets Rammed 1 | . 1 . . . . . Kicked . | . . . . . . . Crushed . | . . . . . . . Highest Temperature 5 | . . . . 5 . . Average Temperature 5 | . . . . 5 . . Received Heat Transfer 318 | . 6 105 . 63 24 120 Siege Activations . | . . . . . . . Martial Activations . | . . . . . . . Shielding Activations . | . . . . . . . Robots Disrupted . | . . . . . . . Combat Hostiles . | . . . . . . . Robots Corrupted . | . . . . . . . Combat Hostiles . | . . . . . . . Parts Fried . | . . . . . . . Impact Corruptions . | . . . . . . . Robots Melted . | . . . . . . . Combat Hostiles . | . . . . . . . Parts Melted . | . . . . . . . Heat Transferred . | . . . . . . . Parts Sabotaged . | . . . . . . . Parts Stolen . | . . . . . . . Parts Stripped . | . . . . . . . Power Chain Reactions . | . . . . . . . Alert | -11 -10 -9 -8 -7 -6 -5 ------- Run | Yrd Mat Mat Mat Fac Fac Fac Maximum Alert Level 1 | . . . . . . 1 Low Security (%) 96 | 100 100 100 100 100 100 90 Level 1 3 | . . . . . . 9 Level 2 . | . . . . . . . Level 3 . | . . . . . . . Level 4 . | . . . . . . . Level 5 . | . . . . . . . High Security . | . . . . . . . Max Security . | . . . . . . . Peak Influence 257 | . 20 93 39 10 14 257 Initial 39 | . . 3 39 10 . 1 Average 37 | . 8 25 33 3 6 67 Influence Increases 631 | . 50 110 5 . 14 452 Successful Hack 55 | . 20 16 5 . 14 . Destroy Structure 6 | . . 4 . . . 2 Lose Combat Pursuer 570 | . 30 90 . . . 450 Influence Decreases 359 | . 40 27 74 24 10 184 Entered New Map 78 | . . 7 54 14 . 3 Time Decay 191 | . 30 20 20 10 10 101 Lost Part 90 | . 10 . . . . 80 Squads Dispatched 7 | . . 4 . . . 3 Investigation 2 | . . 2 . . . . Extermination 1 | . . . . . . 1 Reinforcement 4 | . . 2 . . . 2 Assault . | . . . . . . . Garrison . | . . . . . . . Intercept . | . . . . . . . Searches Triggered . | . . . . . . . Construction Impeded . | . . . . . . . Haulers Reinforced . | . . . . . . . Active Scanning Responses . | . . . . . . . Cargo Convoy Interrupts . | . . . . . . . Stealth | -11 -10 -9 -8 -7 -6 -5 --------- Run | Yrd Mat Mat Mat Fac Fac Fac Distress Signals 4 | . 2 1 . . . 1 Communications Jammed . | . . . . . . . Distress Signals . | . . . . . . . Times Spotted 76 | . 7 23 . 4 1 41 Peak Tracking Total 20 | . 7 20 . 4 1 14 Tactical Retreats 9 | . 1 2 . . . 6 Traps | -11 -10 -9 -8 -7 -6 -5 ------- Run | Yrd Mat Mat Mat Fac Fac Fac Traps Triggered 1 | . . . . . . 1 Indirectly . | . . . . . . . Trap Hack Attempts . | . . . . . . . Triggered . | . . . . . . . Disarmed . | . . . . . . . Reprogrammed . | . . . . . . . Reused . | . . . . . . . Traps Extracted . | . . . . . . . Installed . | . . . . . . . Triggered . | . . . . . . . Machines | -11 -10 -9 -8 -7 -6 -5 ---------- Run | Yrd Mat Mat Mat Fac Fac Fac Machines Disabled . | . . . . . . . Max in Single Turn . | . . . . . . . Machines Repaired . | . . . . . . . Machines Dismantled . | . . . . . . . Machines Sabotaged . | . . . . . . . Overloaded Fab Kills . | . . . . . . . Hacking | -11 -10 -9 -8 -7 -6 -5 --------- Run | Yrd Mat Mat Mat Fac Fac Fac Machines Accessed 11 | . 2 6 1 . 1 1 Terminals 11 | . 2 6 1 . 1 1 Fabricators . | . . . . . . . Repair Stations . | . . . . . . . Recycling Units . | . . . . . . . Scanalyzers . | . . . . . . . Garrison Access . | . . . . . . . Total Hacks 34 | . 9 16 4 . 2 3 Successful 14 | . 4 6 1 . 1 2 Failed 20 | . 5 10 3 . 1 1 Catastrophic 5 | . 1 3 1 . . . Database Lockouts . | . . . . . . . Manual 29 | . 9 14 2 . 2 2 Terminals 34 | . 9 16 4 . 2 3 Fabricators . | . . . . . . . Repair Stations . | . . . . . . . Recycling Units . | . . . . . . . Scanalyzers . | . . . . . . . Garrison Access . | . . . . . . . Terminal Hacks 10 | . 2 6 1 . . 1 Zone Layout 10 | . 2 6 1 . . 1 Fabricator Hacks . | . . . . . . . Repair Station Hacks . | . . . . . . . Recycling Unit Hacks . | . . . . . . . Scanalyzer . | . . . . . . . Garrison Access Hacks . | . . . . . . . Unauthorized Hacks 4 | . 2 . . . 1 1 Terminals 4 | . 2 . . . 1 1 Botnet 4 | . 2 . . . 1 1 Fabricators . | . . . . . . . Repair Stations . | . . . . . . . Recycling Units . | . . . . . . . Scanalyzers . | . . . . . . . Garrison Access . | . . . . . . . Data Cores Recovered . | . . . . . . . Used . | . . . . . . . Hacking Detections 9 | . 2 4 1 . 1 1 Full Trace Events 5 | . . 4 1 . . . Feedback Events 2 | . . 2 . . . . Corruption 2 | . . 2 . . . . Feedback Blocked . | . . . . . . . Robot Schematics Acquired . | . . . . . . . Robots Built . | . . . . . . . Authchips . | . . . . . . . Time . | . . . . . . . Total Robot Build Rating . | . . . . . . . Part Schematics Acquired . | . . . . . . . Parts Built . | . . . . . . . Authchips . | . . . . . . . Time . | . . . . . . . Total Part Build Rating . | . . . . . . . Part Studies Acquired . | . . . . . . . Parts Repaired . | . . . . . . . Time . | . . . . . . . Parts Recycled . | . . . . . . . Recycled Matter . | . . . . . . . Retrieved Matter . | . . . . . . . Retrieved Components . | . . . . . . . Parts Scanalyzed . | . . . . . . . Part Schematics Acquired . | . . . . . . . Parts Damaged . | . . . . . . . Bothacking | -11 -10 -9 -8 -7 -6 -5 ------------ Run | Yrd Mat Mat Mat Fac Fac Fac Used RIF Installer . | . . . . . . . Robots Hacked . | . . . . . . . Non-combat . | . . . . . . . Combat . | . . . . . . . Robot Hacks Applied . | . . . . . . . Relay Couplers Released . | . . . . . . . Fabnet Peak Effective % . | . . . . . . . Robots Rewired . | . . . . . . . Allies Hacked . | . . . . . . . Hacks Repelled . | . . . . . . . Allies | -11 -10 -9 -8 -7 -6 -5 -------- Run | Yrd Mat Mat Mat Fac Fac Fac Total Allies . | . . . . . . . Largest Group . | . . . . . . . Highest-Rated Group . | . . . . . . . Highest-Rated Ally . | . . . . . . . Total Orders . | . . . . . . . Ally Attacks . | . . . . . . . Total Damage . | . . . . . . . Kills . | . . . . . . . Allies Corrupted . | . . . . . . . Allies Melted . | . . . . . . . Intel | -11 -10 -9 -8 -7 -6 -5 ------- Run | Yrd Mat Mat Mat Fac Fac Fac Active Infowar (turns) 171 | . . . 16 60 44 51 Sensors 153 | . . . 16 60 44 33 Terrain 18 | . . . . . . 18 Robot Analysis Total . | . . . . . . . Derelict Logs Recovered . | . . . . . . . Drone Launches . | . . . . . . . Drone Recoveries . | . . . . . . . Exploration | -11 -10 -9 -8 -7 -6 -5 ------------- Run | Yrd Mat Mat Mat Fac Fac Fac Turns Passed 581 | 9 77 97 41 60 44 253 Spaces Moved 1276 | 18 148 175 103 157 110 565 Core 331 | 18 148 99 . . . 66 Treads . | . . . . . . . Legs . | . . . . . . . Wheels . | . . . . . . . Hover . | . . . . . . . Flight 945 | . . 76 103 157 110 499 Fastest Speed 37 | 50 50 40 37 37 40 37 Average Speed 42 | 50 50 45 37 38 40 40 Slowest Speed 50 | 50 50 50 40 40 40 50 Overloaded Moves . | . . . . . . . Propulsion Burnouts . | . . . . . . . Robots Hopped 39 | . . 1 . 5 3 30 Potential Cave-ins . | . . . . . . . Cave-ins Triggered . | . . . . . . . Exploration Rate (%) 20 | 3 41 38 18 10 6 25 Regions Visited 6 Branch Regions . Pre-discovered Areas . | . . . . . . . Known Exits Taken . | . . . . . . . Unknown Exits Taken 6 | 1 1 1 1 1 1 . Scrap Searched . | . . . . . . . Spaces Dug 7 | . . 4 . . . 3 Terrain Destroyed 7 | . . 4 . . . 3 Melee 7 | . . 4 . . . 3 Projectile . | . . . . . . . AOE . | . . . . . . . Terrain Rammed . | . . . . . . . Walls Destroyed . | . . . . . . . Machines Disabled . | . . . . . . . Actions | -11 -10 -9 -8 -7 -6 -5 --------- Run | Yrd Mat Mat Mat Fac Fac Fac Total 1257 | 17 149 180 104 151 106 550 Wait . | . . . . . . . Move 1201 | 17 147 172 102 146 103 514 Hop 30 | . . 1 . 5 3 21 Pick Up . | . . . . . . . Fast Attach 15 | . 1 2 2 . . 10 Attach 1 | . . . . . . 1 Detach 1 | . . . . . . 1 Swap . | . . . . . . . Drop . | . . . . . . . Fire . | . . . . . . . Melee 8 | . . 5 . . . 3 Ram 1 | . 1 . . . . . Kick . | . . . . . . . Crush . | . . . . . . . Escape Stasis . | . . . . . . . Rewire . | . . . . . . . Trap . | . . . . . . . Miscellaneous . | . . . . . . . Route ------- -11/Scrapyard -10/Materials (discovered 2 exits: *Mat / [*Min]) -9/Materials (discovered 2 exits: *Mat / [*Min]) -8/Materials -7/Factory -6/Factory -5/Factory History --------- Turn | Location | Event 5 | -11/Scrapyard | Discovered new exit (range 12) 10 | -11/Scrapyard | Entered Materials 66 | -10/Materials | Discovered new exit (range 8) 82 | -10/Materials | Discovered new exit (range 10) 87 | -10/Materials | Entered another Materials area 87 | -9/Materials | Evolved 2 slots: Propulsion x1, Utility x1 122 | -9/Materials | Discovered new exit (range 17) 182 | -9/Materials | Discovered new exit (range 5) 184 | -9/Materials | Entered another Materials area 184 | -8/Materials | Evolved 2 slots: Propulsion x1, Utility x1 225 | -8/Materials | Discovered new exit (range 3) 225 | -8/Materials | Entered Factory 225 | -7/Factory | Evolved 2 slots: Propulsion x1, Utility x1 280 | -7/Factory | Discovered new exit (range 13) 285 | -7/Factory | Entered another Factory area 285 | -6/Factory | Evolved 2 slots: Propulsion x1, Utility x1 306 | -6/Factory | Build established: Mutant 323 | -6/Factory | Discovered new exit (range 13) 329 | -6/Factory | Entered another Factory area 329 | -5/Factory | Evolved 2 slots: Power x1, Propulsion x1 500 | -5/Factory | Lost 3 parts (2n1u) 534 | -5/Factory | Core integrity fell below 50% 568 | -5/Factory | Core integrity fell below 20% 582 | -5/Factory | Destroyed by S-27 Virus with Autogun Last Messages --------------- 00521_ K-01 Serf collects debris. 00521_ U-05 Engineer lays Concrete. 00525_ K-01 Serf destroyed. 00526_ U-05 Engineer lays Concrete. 00526_ K-01 Serf cleans the Construction Platform. 00527_ U-05 Engineer lays Concrete. 00529_ Nuclear Pulse Array destroyed. 00530_ K-01 Serf cleans the Construction Platform. 00533_ Acquired Field Propulsion Drive. 00533_ K-01 Serf cleans the Construction Platform. 00543_ Field Propulsion Drive destroyed. 00558_ Acquired Cmb. Gravmag System. 00565_ System corrupted: Energy discharge (-21). 00568_ Cmb. Gravmag System destroyed. 00569_ ALERT: Potential suspicious activity detected, Programmers report to Factory Zone 4Z. Map ----- +----------------------------------------------------+ | #????????????????????????????????????????? | | #????????????????????????????????????????? | | #????????????????????????????????????????? | | #????????????????????????????????????????? | | #????????????????????????????????????????? | | #????????????????????????????????????????? | | #????????????????????????????????????????? | | #????????????????????????????????????????? | | #????????????????????????????????????????? | | #????????????????????????????????????????? | | #????????????????????????????????????????? | | ##########???????????????????????????????? | | #???????????????????????????????? | | #???????????????????????????????? | | """" #?????????###########???????????? | | """" #?????????# #???????????? | | """" #?????????# #???????????? | | """" #?????????# #???????????? | | """" #?????????# #???????????? | | ## """" #?????????# " #???????????? | | ?# """" #?????????# #???????????? | | ## #?????????# #???????????? | | #?????????# #???????????? | | ! #????????## #???????????? | | ] #????????#s## ###???????????? | | ]] #????????##@# #?????????????? | | ]] #????????# ## #?????????????? | | #????????##?# #?????????????? | | ############# #?????????????? | | ## #?????????????? | | ## #?????????????? | | """ ## #?????????????? | | ""F"" ## #?????????????? | | "" "" ## #?????????????? | | ### """""" ## #?????????????? | | ??# """""" ## #?????????????? | | ??# """""" ## #?????????????? | | ??# """""" ## #?????????????? | | ??# """""" ## #?????????????? | | ??# """""" ## #?????????????? | | ??? """""" ## #?????????????? | | ??? """""" ## #?????????????? | | ???? """""" ## ###########???? | | ???? ## # #???? | | ?????? """""" """""" ## # #???? | | ???????????""" """""" ## # #???? | | ?????????????? ?""""" # ! #???? | | ????????????????""""" # #???? | | ?????????????????"""" + ! #???? | | ?????????????????"""" """ # #???? | +----------------------------------------------------+ Best States ------------- Heat Dissipation 40 Energy Generation 5 Energy Capacity 100 Matter Stores 224 Matter Capacity 300 Sight Range 16 Robot Scan Range 15 Terrain Scan Range 20 Terrain Scan Density 10 Evasion (%) 62 Defensive Hacking 14 Item Schematics ----------------- None Robot Schematics ------------------ None Fabricated ------------ Nothing Repaired ---------- Nothing Studied --------- None Alien Tech Used ----------------- None Achievements -------------- None Challenges ------------ None Game ------ Seed InsulationLatentCannon Manual? 0 Play Time 00:17:03 Cumulative 550.9 hours Start 2025.10.23 @ 16:25:37 End 2025.10.23 @ 16:38:06 Sessions 1 Manual Loads 0 Difficulty Rogue Special Mode None Game No. 235 Rogue 235 Adventurer 0 Explorer 0 Win Type - Total 39 Types 18/2/6/2/5/1/0/2/0/3 Lore% 96 Gallery% 87 Achievement% 67 Wizard Run 0 Options --------- Layout 1 ASCII 0 Keyboard 0 Movement Numpad Keybinds 0 Fullscreen 1 Font 24/Smallcaps Map View 50x35 Zoom Use 0% Tactical HUD 1 Map Filters NONE Filters NONE Steam 1 RUN: 6cdeb2b4-894f-4d0f-8fda-0103e95f300c